bitfinex-derivatives/quotes_ETHF0:USTF0_20250104
["timestamp","ask_amount","ask_price","bid_price","bid_amount"]
[1735984837460,0.853,3589.1,3589.0,0.27872]
[1735984838161,0.853,3589.1,3589.0,0.68732]
[1735984838361,0.853,3589.1,3589.0,1.11282]
[1735984838662,1.27103525,3589.1,3589.0,1.11282]
[1735984841058,1.27103525,3589.1,3588.3,3.6584]
[1735984841359,0.27872,3589.0,3588.9,0.27873]
[1735984841758,0.27872,3589.0,3588.8,1.30369482]
[1735984842960,3.5629783,3589.0,3588.8,1.30369482]
[1735984843159,3.2842583,3589.0,3588.8,1.30369482]
[1735984843359,3.2842583,3589.0,3588.9,0.27873]
[1735984845766,7.6237783,3589.1,3588.9,0.27873]
[1735984845963,7.3450583,3589.1,3588.6,0.4083]
[1735984846164,1.30369482,3589.0,3588.7,0.27874]
[1735984846368,1.30369482,3589.0,3588.7,1.30370482]
[1735984847067,2.18793236,3588.9,3588.7,1.30370482]
[1735984848360,2.18793236,3588.9,3588.8,0.27874]
[1735984850669,2.18793236,3588.9,3588.7,1.02496482]
[1735984850873,2.18793236,3588.9,3588.8,0.27874]
[1735984851465,3.21289718,3589.0,3588.8,0.27874]
[1735984852668,2.18793236,3589.0,3588.9,1.30369482]
[1735984852868,2.18793236,3589.0,3588.9,1.02496482]
[1735984853671,2.18793236,3589.0,3588.9,1.30369482]
[1735984854473,3.04093236,3589.1,3588.9,1.30369482]
[1735984855071,3.31965236,3589.1,3588.9,1.02496482]
[1735984855381,3.31965236,3589.1,3588.9,1.30369482]
[1735984856967,2.18793236,3589.0,3588.9,1.30369482]
[1735984857364,2.18793236,3589.0,3588.9,1.02496482]
[1735984858470,2.18793236,3589.0,3588.9,1.30369482]
[1735984871980,2.18793236,3589.0,3588.9,1.02496482]
[1735984871981,3.2842583,3589.0,3588.9,1.02496482]
[1735984872181,3.2842583,3589.0,3588.9,1.30369482]
[1735984874588,3.7023941,3589.0,3588.9,1.30369482]
[1735984875885,0.4181358,3589.0,3588.9,1.30369482]
[1735984877581,5.2342479,3589.1,3589.0,0.27872]
[1735984878582,1.2711358,3589.1,3589.0,0.27872]
[1735984879989,6.74900916,3589.1,3589.0,0.70172]
[1735984881293,10.84548139,3589.1,3589.0,0.70172]
[1735984883592,10.84548139,3589.1,3589.0,0.27872]
[1735984891695,10.84548139,3589.1,3589.0,1.30368482]
[1735984891901,9.99248139,3589.1,3589.0,1.30368482]
[1735984892092,9.99248139,3589.1,3589.0,1.74768482]
[1735984893400,4.38449107,3589.3,3589.0,6.7540464]
[1735984893593,4.38449107,3589.3,3589.2,0.27871]
[1735984893791,4.38449107,3589.3,3589.2,1.30367482]
[1735984893997,5.23209107,3589.3,3589.2,1.30367482]
[1735984894798,5.65022687,3589.3,3589.2,1.30367482]
[1735984897899,1.2657358,3589.3,3589.2,1.30367482]
[1735984901304,0.4181358,3589.3,3589.2,1.30367482]
[1735984902712,3.2826324,3589.4,3589.2,1.30367482]
[1735984903110,4.1677324,3589.4,3589.3,0.452]
[1735984903315,4.1677324,3589.4,3589.3,0.7307]
[1735984903616,1.30319853,3589.4,3589.3,0.7307]
[1735984903918,1.30319853,3589.4,3589.3,0.452]
[1735984906617,1.58188853,3589.4,3589.3,0.452]
[1735984906920,1.30319853,3589.4,3589.3,0.452]
[1735984908620,1.30319853,3589.4,3589.3,0.7307]
[1735984909417,1.30319853,3589.4,3589.3,1.1501]
[1735984910114,0.41809853,3589.4,3589.3,1.1501]
[1735984910623,3.69992005,3589.4,3589.3,1.1501]
[1735984911510,3.69992005,3589.4,3589.3,1.5699]
[1735984911719,3.69992005,3589.4,3589.3,4.7777]
[1735984911919,3.69992005,3589.4,3589.3,5.80266482]
[1735984912121,3.69992005,3589.4,3589.3,4.7777]
[1735984912317,2.18791002,3589.4,3589.3,5.80266482]
[1735984914116,2.18791002,3589.7,3589.6,0.27868]
[1735984914325,2.18791002,3589.7,3589.6,1.30364482]
[1735984915924,2.18791002,3589.8,3589.7,0.27867]
[1735984916622,2.18791002,3589.8,3589.7,1.30363482]
[1735984917218,1.17884,3590.1,3589.8,0.27866]
[1735984917219,2.18791002,3589.9,3589.8,0.27866]
[1735984917524,2.18791002,3589.9,3589.8,0.70636]
[1735984918330,2.18791002,3589.9,3589.8,1.12396]
[1735984918722,0.30191002,3589.9,3589.8,1.12396]
[1735984920524,3.2078,3590.5,3590.4,0.27861]
[1735984920825,3.2078,3590.5,3590.4,1.02496482]
[1735984921217,3.2078,3590.5,3590.4,1.30357482]
[1735984922023,3.2078,3590.5,3590.4,1.02496482]
[1735984922422,3.2078,3590.5,3590.4,1.30357482]
[1735984925221,0.4506,3590.6,3590.4,2.04992964]
[1735984925423,3.48454525,3590.8,3590.7,0.27859]
[1735984925620,3.48454525,3590.8,3590.7,1.30355482]
[1735984925821,3.28182152,3590.8,3590.7,1.30355482]
[1735984926825,3.28182152,3591.3,3591.1,0.27855]
[1735984927035,3.28182152,3591.3,3591.2,1.46706482]
[1735984928526,0.69564,3591.4,3591.2,1.46706482]
[1735984929531,0.69564,3591.4,3591.2,1.74561482]
[1735984930231,1.72060482,3591.4,3591.2,1.74561482]
[1735984930531,0.27854,3591.3,3591.2,1.46706482]
[1735984930725,1.72060482,3591.4,3591.2,1.74561482]
[1735984932131,0.27854,3591.3,3591.2,1.74561482]
[1735984933325,0.27854,3591.3,3591.2,1.30351482]
[1735984933728,0.27854,3591.3,3591.2,0.27855]
[1735984935432,1.72060482,3591.4,3591.3,0.27854]
[1735984935831,0.69564,3591.4,3591.3,0.27854]
[1735984936237,0.4171,3591.4,3591.3,0.27854]
[1735984936632,0.69564,3591.4,3591.3,0.27854]
[1735984938333,0.4171,3591.4,3591.3,0.27854]
[1735984939737,0.4171,3591.4,3591.3,0.68894]
[1735984943239,3.2078,3592.0,3591.3,4.64316482]
[1735984943540,3.6293,3592.0,3591.9,1.30346482]
[1735984943738,0.4215,3592.0,3591.9,1.30346482]
[1735984944136,0.4511,3592.3,3591.9,1.02496482]
[1735984944342,3.28182152,3592.4,3592.3,0.27847]
[1735984944549,0.4215,3592.5,3592.4,0.27846]
[1735984944835,0.4215,3592.5,3592.4,1.30342482]
[1735984945140,0.4511,3592.6,3592.4,1.02496482]
[1735984945337,0.4511,3592.6,3592.5,0.27845]
[1735984946145,0.4215,3592.8,3592.7,0.27843]
[1735984946738,0.27839,3593.3,3592.7,3.2078]
[1735984946943,0.2784,3593.2,3592.9,2.39438862]
[1735984947138,0.2784,3593.2,3592.9,2.11596862]
[1735984947336,0.2784,3593.2,3592.8,0.4343]
[1735984947748,0.2784,3593.2,3592.9,0.27842]
[1735984948238,0.4109,3593.3,3592.9,2.11596862]
[1735984948645,0.68929,3593.3,3593.0,0.27841]
[1735984949144,0.2784,3593.2,3593.0,0.27841]
[1735984949343,0.68929,3593.3,3593.0,0.27841]
[1735984950441,0.4109,3593.3,3593.0,0.27841]
[1735984950641,0.68929,3593.3,3593.0,0.27841]
[1735984950840,0.2784,3593.1,3592.9,0.27842]
[1735984951249,0.2784,3593.2,3593.0,0.27841]
[1735984951447,0.2784,3593.2,3592.8,0.71272]
[1735984951744,0.4109,3593.3,3592.9,0.27842]
[1735984952042,0.2784,3593.1,3592.9,0.27842]
[1735984952245,0.27841,3593.0,3592.8,0.4343]
[1735984952438,0.27841,3593.1,3592.8,0.71272]
[1735984952946,0.27842,3593.0,3592.8,0.71272]
[1735984953440,0.27842,3593.0,3592.8,0.4343]
[1735984953643,0.27842,3593.0,3592.8,0.71273]
[1735984954239,0.27842,3593.0,3592.8,0.4343]
[1735984955541,0.27843,3592.8,3592.7,0.4454]
[1735984955735,0.27845,3592.5,3592.3,3.2078]
[1735984958044,0.27845,3592.6,3592.3,3.2078]
[1735984958841,0.27845,3592.6,3592.3,5.32376862]
[1735984959047,0.27845,3592.6,3592.3,5.60222862]
[1735984960051,0.27845,3592.6,3592.3,2.39442862]
[1735984963149,0.8716,3592.7,3592.3,2.11596862]
[1735984963457,0.27845,3592.6,3592.3,2.11596862]
[1735984963651,0.27845,3592.6,3592.3,2.39443862]
[1735984965654,0.27845,3592.6,3592.3,2.39442862]
[1735984966258,0.27845,3592.6,3592.2,4.0733]
[1735984966461,0.27845,3592.6,3592.3,0.27847]
[1735984966462,0.27844,3592.6,3592.3,0.27847]
[1735984967462,0.8716,3592.7,3592.2,4.0733]
[1735984967762,0.27849,3592.1,3591.7,0.27851]
[1735984967960,0.8415,3592.0,3591.8,0.7165]
[1735984968554,0.8415,3592.0,3591.8,0.438]
[1735984968763,0.2785,3591.9,3591.7,0.4233]
[1735984969046,0.2785,3591.8,3591.7,0.4233]
[1735984970058,0.27852,3591.7,3591.5,7.04728479]
[1735984970458,0.27852,3591.7,3591.5,2.70438659]
[1735984970967,0.6871,3591.9,3591.5,2.70438659]
[1735984971167,0.27851,3591.8,3591.5,2.70438659]
[1735984971467,0.27852,3591.6,3591.5,0.15041797]
[1735984972565,0.27851,3591.7,3591.4,2.19905838]
[1735984972775,0.4375,3591.5,3591.4,2.19905838]
[1735984972969,0.4375,3591.5,3591.4,2.47759838]
[1735984973964,0.4375,3591.5,3591.4,2.19905838]
[1735984974268,0.4375,3591.5,3591.4,2.47759838]
[1735984974461,0.4375,3591.5,3591.4,2.19905838]
[1735984976771,0.2785,3591.9,3591.5,0.27852]
[1735984976966,0.4406,3591.8,3591.5,0.70542]
[1735984978369,0.4406,3591.8,3591.5,0.4269]
[1735984978568,0.4406,3591.8,3591.6,0.27852]
[1735984978970,0.4406,3591.8,3591.5,0.4269]
[1735984979165,0.4406,3591.8,3591.6,0.27852]
[1735984979372,0.4406,3591.8,3591.7,0.27851]
[1735984979874,0.7191,3591.8,3591.6,0.27852]
[1735984980073,0.4406,3591.8,3591.6,0.27852]
[1735984980471,0.4406,3591.8,3591.7,0.27851]
[1735984980867,0.4406,3591.8,3591.5,2.54286862]
[1735984981077,0.71911,3591.8,3591.6,0.27852]
[1735984981577,0.71911,3591.8,3591.5,2.54286862]
[1735984981578,0.4406,3591.8,3591.7,0.27851]
[1735984981765,3.28182152,3592.2,3591.7,3.2078]
[1735984981966,3.28182152,3592.2,3592.1,0.27848]
[1735984982162,3.56030152,3592.2,3592.0,0.27848]
[1735984982368,0.2785,3591.9,3591.8,0.4504]
[1735984982573,0.27851,3591.8,3591.6,2.81248862]
[1735984982772,0.854,3591.7,3591.6,2.81248862]
[1735984982970,0.854,3591.7,3591.3,3.2078]
[1735984983173,0.27854,3591.4,3591.3,3.2078]
[1735984983573,0.27852,3591.6,3591.3,3.2078]
[1735984983777,0.27854,3591.4,3591.3,3.2078]
[1735984984079,0.439,3591.5,3591.3,3.2078]
[1735984984272,0.71753,3591.5,3591.3,3.2078]
[1735984984468,0.439,3591.5,3591.3,3.2078]
[1735984984780,0.27855,3591.3,3591.0,0.27856]
[1735984985079,0.27855,3591.2,3590.9,0.27857]
[1735984985282,0.4314,3591.1,3590.9,0.27857]
[1735984985877,0.70996,3591.1,3590.9,0.27857]
[1735984986475,0.70996,3591.1,3590.6,2.56226862]
[1735984986780,0.70996,3591.1,3591.0,0.27857]
[1735984987082,0.4314,3591.1,3591.0,0.27857]
[1735984992871,0.70996,3591.1,3591.0,0.27857]
[1735984993078,0.4314,3591.1,3591.0,0.27857]
[1735984993777,0.70996,3591.1,3591.0,0.27857]
[1735984996387,0.27859,3590.7,3590.6,0.4463]
[1735984996688,0.27859,3590.7,3590.4,3.2078]
[1735984996986,0.27859,3590.7,3590.5,0.72211]
[1735984996987,0.4528,3590.6,3590.5,0.72211]
[1735984998787,0.4528,3590.6,3590.5,0.4435]
[1735984998984,0.7314,3590.6,3590.5,0.4435]
[1735985002794,0.27859,3590.7,3590.5,0.4435]
[1735985003481,3.2078,3590.9,3590.5,0.4435]
[1735985003887,0.27859,3590.7,3590.5,0.4435]
[1735985004274,3.2078,3590.9,3590.5,0.4435]
[1735985004474,0.2786,3590.6,3590.5,0.4435]
[1735985005687,3.6447,3590.9,3590.2,0.4417]
[1735985005887,0.4138,3590.5,3590.3,0.4232]
[1735985006084,0.27861,3590.4,3590.3,0.4232]
[1735985006989,0.69241,3590.5,3590.3,0.4232]
[1735985010785,0.4138,3590.5,3590.3,0.4232]
[1735985010986,0.69241,3590.5,3590.3,0.4232]
[1735985011791,0.27861,3590.4,3590.3,0.4232]
[1735985012082,0.27861,3590.4,3590.1,3.64833355]
[1735985012083,0.27863,3590.2,3590.1,3.36970355]
[1735985016288,3.48643,3590.2,3590.1,0.16190355]
[1735985016484,0.27868,3589.6,3589.5,0.4374]
[1735985016693,0.27867,3589.7,3589.5,0.71608]
[1735985016991,0.9016,3589.6,3589.5,0.71608]
[1735985026197,0.9016,3589.6,3589.5,0.4374]
[1735985026709,0.27868,3589.5,3589.0,0.72462]
[1735985027004,6.22536862,3589.6,3589.0,0.72462]
[1735985027005,0.27869,3589.4,3589.1,0.4119]
[1735985027198,0.70719,3589.4,3589.1,0.4119]
[1735985027995,0.4285,3589.4,3589.1,0.69061]
[1735985028197,0.2787,3589.3,3589.1,0.4119]
[1735985028603,0.4488,3589.2,3589.1,0.4119]
[1735985028802,0.72751,3589.2,3589.1,0.4119]
[1735985029902,0.4488,3589.2,3588.6,3.6322]
[1735985030106,0.27873,3589.0,3588.9,0.4478]
[1735985030501,0.27874,3588.8,3588.7,0.4102]
[1735985031200,0.69164,3588.8,3588.7,0.4102]
[1735985036101,0.4129,3588.8,3588.7,0.4102]
[1735985037302,0.69164,3588.8,3588.7,0.4102]
[1735985037703,0.4129,3588.8,3588.7,0.4102]
[1735985039206,0.27873,3588.9,3588.7,0.4102]
[1735985041304,0.27874,3588.8,3588.7,0.4102]
[1735985041512,0.68874,3588.8,3588.7,0.4102]
[1735985048807,0.41,3588.8,3588.6,0.4474]
[1735985049012,0.27874,3588.7,3588.6,0.4474]
[1735985049700,0.41,3588.8,3588.4,0.4117]
[1735985049907,0.27876,3588.5,3588.4,0.4117]
[1735985056216,1.30439888,3588.5,3588.4,0.4117]
[1735985064619,0.27876,3588.5,3588.4,0.4117]
[1735985065216,1.30439888,3588.5,3588.4,0.4117]
[1735985070617,3.48113475,3588.5,3588.4,0.4117]
[1735985071522,3.20237475,3588.5,3588.1,4.3428982]
[1735985071824,0.27878,3588.2,3588.1,4.3428982]
[1735985072218,1.59158,3588.2,3588.1,4.3428982]
[1735985073022,2.61721888,3588.2,3588.1,4.3428982]
[1735985073518,2.61721888,3588.2,3587.6,19.40983442]
[1735985073519,7.1412047,3588.2,3587.7,4.3428982]
[1735985073725,4.51224888,3587.8,3587.7,4.3428982]
[1735985075928,4.51224888,3587.8,3587.1,0.4222]
[1735985075929,0.27886,3587.2,3587.1,0.4222]
[1735985076126,1.30449888,3587.2,3587.1,0.4222]
[1735985076725,1.02563888,3587.2,3587.0,5.0443682]
[1735985076924,0.69307,3587.1,3587.0,5.0443682]
[1735985077230,0.69307,3587.1,3587.0,0.4226]
[1735985077732,0.69307,3587.1,3587.0,0.70148]
[1735985078234,0.4142,3587.1,3587.0,0.70148]
[1735985081131,0.4142,3587.1,3587.0,0.4226]
[1735985081519,0.69307,3587.1,3587.0,0.4226]
[1735985082232,0.4142,3587.1,3587.0,0.4226]
[1735985082430,0.69307,3587.1,3587.0,0.4226]
[1735985082835,0.4142,3587.1,3587.0,0.4226]
[1735985083029,0.69307,3587.1,3587.0,0.4226]
[1735985085837,0.4142,3587.1,3587.0,0.4226]
[1735985086038,1.02563888,3587.4,3587.0,0.4226]
[1735985086238,0.27887,3587.2,3587.1,1.02563888]
[1735985086438,3.2078,3587.5,3587.1,1.02563888]
[1735985086631,2.91424396,3587.6,3587.4,1.30448888]
[1735985086837,2.91424396,3587.6,3587.5,0.4359]
[1735985087033,0.73153,3587.6,3587.5,0.4359]
[1735985087229,0.4527,3587.6,3587.5,0.4359]
[1735985087434,0.73153,3587.6,3587.5,0.71474]
[1735985088240,0.4527,3587.6,3587.5,0.71474]
[1735985090444,0.73153,3587.6,3587.5,0.71474]
[1735985093045,0.4527,3587.6,3587.5,0.71474]
[1735985093347,0.73153,3587.6,3587.5,0.71474]
[1735985095548,0.73153,3587.6,3587.5,1.15074]
[1735985096541,0.73153,3587.6,3587.5,0.8719]
[1735985097644,0.73153,3587.6,3587.5,1.15074]
[1735985099046,0.73153,3587.6,3587.5,0.8719]
[1735985102044,0.73153,3587.6,3587.5,1.15074]
[1735985103147,0.73153,3587.6,3587.5,0.8719]
[1735985108643,0.27885,3587.3,3587.2,1.02563888]
[1735985109155,41.82563888,3587.3,3586.9,4.7878982]
[1735985109355,0.27888,3587.0,3586.9,4.3428982]
[1735985109957,0.71468,3587.0,3586.9,4.3428982]
[1735985110758,0.27888,3586.9,3586.8,1.47113888]
[1735985113659,0.27888,3586.9,3586.8,1.02563888]
[1735985116660,2.46159396,3586.9,3586.8,1.02563888]
[1735985118260,3.55295094,3586.9,3586.8,1.30452888]
[1735985119573,0.27888,3586.9,3586.8,1.30452888]
[1735985119963,0.27888,3586.9,3586.8,1.02563888]
[1735985120962,0.27889,3586.8,3586.7,0.431]
[1735985121169,0.72039,3586.8,3586.7,0.431]
[1735985122268,2.90438765,3586.8,3586.7,0.431]
[1735985132378,0.27891,3586.6,3586.4,5.64745708]
[1735985132573,0.69902,3586.5,3586.4,5.64745708]
[1735985133077,0.69902,3586.5,3586.4,1.30455888]
[1735985133378,0.69902,3586.5,3586.4,1.02563888]
[1735985133682,0.4201,3586.5,3586.3,7.5506982]
[1735985133980,1.11482,3586.5,3586.4,1.02563888]
[1735985134180,0.8359,3586.5,3586.3,7.5506982]
[1735985134380,0.27892,3586.4,3586.3,8.57633708]
[1735985134773,0.27892,3586.4,3586.3,4.23343888]
[1735985135180,0.27892,3586.4,3586.3,3.2078]
[1735985135380,0.27892,3586.4,3586.3,4.23343888]
[1735985135983,1.11482,3586.5,3586.3,4.51236888]
[1735985136678,0.8359,3586.5,3586.4,0.27892]
[1735985137889,1.11482,3586.5,3586.3,4.51236888]
[1735985138280,0.8359,3586.5,3586.4,0.27892]
[1735985139493,0.8359,3586.5,3586.3,4.23343888]
[1735985139676,1.11482,3586.5,3586.4,0.27892]
[1735985139881,0.8359,3586.5,3586.4,0.27892]
[1735985142981,0.4201,3586.5,3586.4,0.27892]
[1735985148790,3.20963653,3586.6,3586.3,1.02563888]
[1735985148993,2.18399765,3586.6,3586.5,1.30455888]
[1735985149694,2.18399765,3586.6,3586.5,4.51235888]
[1735985151194,2.18399765,3586.8,3586.5,8.57633708]
[1735985151396,2.18399765,3586.8,3586.7,1.30453888]
[1735985152295,2.18399765,3586.8,3586.7,1.71353888]
[1735985152690,2.18399765,3586.8,3586.7,0.6879]
[1735985155616,3.27407094,3586.8,3586.7,0.6879]
[1735985156397,3.69237094,3586.8,3586.7,0.6879]
[1735985156908,0.4183,3586.8,3586.7,0.6879]
[1735985157405,0.69719,3586.8,3586.7,0.6879]
[1735985157606,0.4183,3586.8,3586.7,0.6879]
[1735985158009,0.69719,3586.8,3586.7,0.6879]
[1735985158202,5.06261793,3586.8,3586.7,0.6879]
[1735985158701,4.78372793,3586.8,3586.7,0.6879]
[1735985159203,5.06261793,3586.8,3586.7,0.6879]
[1735985159802,5.48100976,3586.8,3586.7,0.6879]
[1735985160904,1.11558183,3586.8,3586.7,0.6879]
[1735985161298,1.11558183,3586.8,3586.7,0.409]
[1735985161504,1.11558183,3586.8,3586.7,0.6879]
[1735985161807,1.11558183,3586.8,3586.7,0.2789]
[1735985163803,5.48100976,3586.8,3586.7,0.2789]
[1735985165596,0.2789,3586.7,3586.6,0.42]
[1735985165806,0.7096,3586.7,3586.6,0.6989]
[1735985166514,0.4307,3586.7,3586.6,1.72453888]
[1735985167304,0.4307,3586.7,3586.6,6.06743708]
[1735985167510,0.84909183,3586.7,3586.6,6.06743708]
[1735985169611,1.12799183,3586.7,3586.6,6.06743708]
[1735985171214,1.12799183,3586.7,3586.6,5.78853708]
[1735985172622,1.12799183,3586.7,3586.6,6.06744708]
[1735985173316,2.15363071,3586.7,3586.6,4.3428982]
[1735985174713,0.27892,3586.5,3586.4,4.3428982]
[1735985175315,1.30455888,3586.5,3586.4,4.3428982]
[1735985176222,1.72295071,3586.5,3586.4,4.3428982]
[1735985176714,2.15625071,3586.5,3586.4,4.3428982]
[1735985179221,2.15625071,3586.5,3586.3,1.02563888]
[1735985179222,0.27892,3586.4,3586.3,5.36853708]
[1735985179717,0.27892,3586.4,3586.3,5.64746708]
[1735985180321,3.9787798,3586.4,3586.3,5.64746708]
[1735985182422,3.9787798,3586.4,3586.3,5.36853708]
[1735985190631,3.9787798,3586.4,3586.3,4.3428982]
[1735985194230,0.27893,3586.3,3586.2,5.0448382]
[1735985194530,0.71583,3586.3,3586.2,5.0448382]
[1735985194926,0.71583,3586.3,3586.2,4.7658982]
[1735985195126,1.74146888,3586.3,3586.2,4.7658982]
[1735985195428,2.15606888,3586.3,3586.2,4.7658982]
[1735985197429,5.85599691,3586.3,3586.2,0.423]
[1735985198124,4.83035803,3586.3,3586.2,0.423]
[1735985198324,4.39345803,3586.3,3586.2,0.423]
[1735985198533,3.97885803,3586.3,3586.2,1.72757888]
[1735985198834,3.97885803,3586.3,3586.2,2.16137888]
[1735985200133,3.56039797,3586.3,3586.2,6.50427708]
[1735985205936,3.28146797,3586.3,3586.2,6.50427708]
[1735985206139,3.97883928,3586.3,3586.2,6.50427708]
[1735985207737,3.56039797,3586.3,3586.2,6.50427708]
[1735985208442,3.56039797,3586.3,3586.2,6.22533708]
[1735985208633,3.56039797,3586.3,3586.2,6.50427708]
[1735985210040,3.56039797,3586.3,3586.2,6.07047708]
[1735985210340,3.56039797,3586.3,3586.2,5.0448382]
[1735985210729,3.97884025,3586.3,3586.2,5.0448382]
[1735985211339,3.97884025,3586.3,3586.2,4.7658982]
[1735985211539,5.00447913,3586.3,3586.2,4.7658982]
[1735985212240,5.44457913,3586.3,3586.2,4.7658982]
[1735985212442,2.16311116,3586.3,3586.2,4.7658982]
[1735985212633,2.16311116,3586.3,3586.2,4.3428982]
[1735985213437,5.83116681,3586.3,3586.0,4.3428982]
[1735985213743,1.30458888,3586.1,3586.0,4.3428982]
[1735985215046,5.00299227,3586.1,3586.0,4.3428982]
[1735985216748,3.97735339,3586.1,3586.0,4.3428982]
[1735985220344,0.69739228,3586.1,3586.0,4.3428982]
[1735985220845,0.69739228,3586.1,3586.0,4.7721982]
[1735985221447,0.27895,3586.1,3586.0,4.7721982]
[1735985221951,1.30458888,3586.1,3586.0,4.3428982]
[1735985223052,4.93083116,3586.1,3586.0,4.3428982]
[1735985224755,9.29625909,3586.1,3586.0,4.3428982]
[1735985225064,0.27895,3586.0,3585.9,4.3428982]
[1735985225260,1.71398888,3586.0,3585.9,4.3428982]
[1735985225953,5.41135824,3586.0,3585.9,4.3428982]
[1735985227155,6.43699712,3586.0,3585.9,2.61880175]
[1735985227757,0.27899,3585.5,3585.4,3.04250175]
[1735985228059,1.30462888,3585.5,3585.4,3.04250175]
[1735985228860,1.30462888,3585.5,3585.4,2.61880175]
[1735985229462,0.279,3585.4,3585.3,2.75958491]
[1735985229655,0.7101,3585.4,3585.3,2.75958491]
[1735985230051,0.7101,3585.4,3585.3,3.03859491]
[1735985230254,0.7101,3585.4,3585.3,2.75958491]
[1735985230455,0.7101,3585.4,3585.3,3.03859491]
[1735985230662,2.89323465,3585.4,3585.3,3.03859491]
[1735985231158,2.89323465,3585.4,3585.3,2.75958491]
[1735985231757,2.89323465,3585.4,3585.3,3.20338491]
[1735985233869,2.89323465,3585.4,3585.3,2.75958491]
[1735985242070,0.7101,3585.4,3585.3,2.75958491]
[1735985242271,0.27901,3585.3,3585.2,0.45]
[1735985242472,1.74534888,3585.3,3585.2,0.45]
[1735985243865,1.46633888,3585.3,3585.1,0.4483]
[1735985244068,3.48682,3585.2,3585.1,0.4483]
[1735985247367,0.27905,3584.8,3584.7,0.27905]
[1735985247565,0.27905,3584.8,3584.7,0.71475]
[1735985247772,0.27905,3584.8,3584.7,0.4357]
[1735985249169,0.27905,3584.9,3584.8,0.27905]
[1735985249370,0.27905,3584.9,3584.8,1.02563888]
[1735985249867,0.27905,3584.9,3584.8,1.30468888]
[1735985250569,0.27905,3584.9,3584.8,1.02563888]
[1735985250766,0.27905,3584.9,3584.8,1.30468888]
[1735985250968,0.27905,3584.9,3584.8,1.02563888]
[1735985252175,0.27904,3585.0,3584.8,1.30468888]
[1735985252375,0.27904,3585.0,3584.9,1.02563888]
[1735985253879,0.27904,3584.9,3584.8,0.27905]
[1735985254174,0.27905,3584.8,3584.7,3.6435]
[1735985258277,0.27905,3584.8,3584.7,0.4357]
[1735985258880,0.27905,3584.8,3584.7,0.71476]
[1735985259075,0.27905,3584.8,3584.7,0.4357]
[1735985259582,0.27905,3584.8,3584.7,0.71476]
[1735985260383,0.27905,3584.8,3584.7,0.4357]
[1735985260677,0.27904,3584.9,3584.7,0.71475]
[1735985260880,0.27904,3584.9,3584.8,1.02563888]
[1735985261475,0.4402,3585.0,3584.8,1.02563888]
[1735985261681,0.4402,3585.0,3584.8,1.30468888]
[1735985261875,0.71923,3585.0,3584.8,1.30468888]
[1735985263169,0.4402,3585.0,3584.8,1.30468888]
[1735985263373,0.71923,3585.0,3584.8,1.30468888]
[1735985266080,2.46216465,3585.1,3584.9,0.27904]
[1735985266283,2.18313465,3585.1,3584.8,1.02563888]
[1735985266578,0.27903,3585.0,3584.8,1.30467888]
[1735985267381,0.27903,3585.0,3584.9,0.27904]
[1735985267778,2.18313465,3585.1,3584.8,1.02563888]
[1735985267779,2.18313465,3585.1,3585.0,0.27903]
[1735985268079,2.18313465,3585.1,3584.8,1.02563888]
[1735985268374,2.18313465,3585.1,3585.0,0.27903]
[1735985268975,2.18313465,3585.1,3584.8,1.02563888]
[1735985269170,2.18313465,3585.1,3585.0,0.27903]
[1735985270179,2.18313465,3585.1,3584.8,1.02563888]
[1735985270180,1.02563888,3585.1,3584.8,1.02563888]
[1735985270481,0.414,3585.0,3584.9,0.27904]
[1735985271183,2.59716112,3585.0,3584.9,0.27904]
[1735985272672,3.27551589,3585.0,3584.9,0.27904]
[1735985273184,3.27551589,3585.0,3584.8,1.02563888]
[1735985273385,3.55455589,3585.0,3584.9,0.27904]
[1735985273586,3.55455589,3585.0,3584.8,1.30467888]
[1735985276988,0.27904,3584.9,3584.8,1.30468888]
[1735985277487,0.27904,3584.9,3584.8,1.02563888]
[1735985277688,0.27905,3584.8,3584.7,7.0045939]
[1735985277888,1.15295,3584.8,3584.7,7.0045939]
[1735985279295,1.15295,3584.8,3584.7,7.2836539]
[1735985279494,0.8739,3584.8,3584.7,7.2836539]
[1735985279697,0.8739,3584.8,3584.7,0.71476]
[1735985279698,1.29251697,3584.8,3584.7,0.71476]
[1735985279994,1.29251697,3584.8,3584.7,0.4357]
[1735985280195,1.57156697,3584.8,3584.7,0.4357]
[1735985280685,0.27906,3584.7,3584.6,0.4334]
[1735985280893,1.30469888,3584.7,3584.6,0.4334]
[1735985282701,0.27906,3584.6,3584.5,6.9967939]
[1735985282996,0.27906,3584.6,3584.5,6.5688939]
[1735985283191,0.27907,3584.5,3584.4,3.2078]
[1735985283389,1.30470888,3584.5,3584.4,3.2078]
[1735985284196,4.58006052,3584.5,3584.4,3.2078]
[1735985284394,4.58006052,3584.5,3584.2,8.43473278]
[1735985284593,0.4503,3584.4,3584.3,0.27909]
[1735985285597,0.72938,3584.4,3584.3,0.27909]
[1735985285793,0.4503,3584.4,3584.3,0.27909]
[1735985286097,2.63369,3584.4,3584.3,5.48981458]
[1735985286298,2.63369,3584.4,3584.3,5.21072458]
[1735985286487,2.63369,3584.4,3584.3,5.48981458]
[1735985287198,2.91277,3584.4,3584.3,1.02563888]
[1735985287396,0.27909,3584.3,3584.2,9.7766939]
[1735985287599,2.14822888,3584.3,3584.2,6.5688939]
[1735985287805,2.14822888,3584.3,3584.2,5.2074939]
[1735985288300,2.14822888,3584.3,3584.2,3.1655939]
[1735985288499,2.14822888,3584.3,3584.2,2.0829939]
[1735985288889,2.14822888,3584.3,3583.4,3.2078]
[1735985288890,0.27915,3583.5,3583.4,3.2078]
[1735985289096,1.30478888,3583.5,3583.4,3.2078]
[1735985289298,1.02563888,3583.5,3583.3,0.4346]
[1735985289497,1.02563888,3583.5,3583.2,9.17043932]
[1735985289800,1.30480888,3583.3,3583.2,9.17043932]
[1735985290001,1.30480888,3583.3,3583.2,8.75203932]
[1735985290198,6.30480888,3583.3,3583.2,8.75203932]
[1735985290403,0.27918,3583.1,3583.0,14.79255753]
[1735985290603,5.53825776,3583.1,3583.0,13.35464753]
[1735985290894,10.53825776,3583.1,3583.0,11.59363753]